[Event "*** Titled Tuesday Blitz"]
[Site "Chess.com"]
[Date "2020.04.21"]
[Round "2"]
[White "petincash"]
[Black "powermove"]
[Result "0-1"]
[WhiteElo "2337"]
[BlackElo "1601"]
[TimeControl "180+1"]
[EndTime "10:17:53 PDT"]
[Termination "powermove won on time"]

1. e4 {[%clk 0:03:00.9]} 1... e5 {[%clk 0:02:58.6]} 2. Nf3 {[%clk 0:03:00.6]}
2... Nc6 {[%clk 0:02:58.4]} 3. Bb5 {[%clk 0:03:01.1]} 3... a6 {[%clk 0:02:58.1]}
4. Ba4 {[%clk 0:03:00.9]} 4... Nf6 {[%clk 0:02:57.7]} 5. O-O {[%clk 0:03:00.3]}
5... Be7 {[%clk 0:02:57.6]} 6. Bxc6 {[%clk 0:02:59.7]} 6... dxc6 {[%clk
0:02:54.4]} 7. d3 {[%clk 0:03:00.3]} 7... Nd7 {[%clk 0:02:50.2]} 8. Nbd2 {[%clk
0:03:00.1]} 8... O-O {[%clk 0:02:49.1]} 9. Nc4 {[%clk 0:03:00.4]} 9... f6 {[%clk
0:02:48]} 10. Ne3 {[%clk 0:03:00.4]} 10... Nc5 {[%clk 0:02:47.1]} 11. Nh4 {[%clk
0:02:59.7]} 11... g6 {[%clk 0:02:37.8]} 12. g3 {[%clk 0:02:54.9]} 12... f5
{[%clk 0:02:18.5]} 13. exf5 {[%clk 0:02:45.6]} 13... Bxh4 {[%clk 0:02:17.4]} 14.
gxh4 {[%clk 0:02:29.7]} 14... Bxf5 {[%clk 0:01:53.7]} 15. Nxf5 {[%clk 0:02:05]}
15... Rxf5 {[%clk 0:01:51.9]} 16. Qg4 {[%clk 0:01:50]} 16... Ne6 {[%clk
0:01:42.8]} 17. Be3 {[%clk 0:01:39.6]} 17... Qf6 {[%clk 0:01:39.3]} 18. Kh1
{[%clk 0:01:30.6]} 18... Rf8 {[%clk 0:01:36.8]} 19. Rg1 {[%clk 0:01:30.8]} 19...
Nf4 {[%clk 0:01:31.6]} 20. Rae1 {[%clk 0:01:18.4]} 20... c5 {[%clk 0:01:27.8]}
21. Qf3 {[%clk 0:00:47.8]} 21... c6 {[%clk 0:01:08.9]} 22. Rg5 {[%clk 0:00:31]}
22... Nxd3 {[%clk 0:01:01.6]} 23. Rxf5 {[%clk 0:00:23.8]} 23... Nxe1 {[%clk
0:00:47.8]} 24. Rxf6 {[%clk 0:00:23.8]} 24... Nxf3 {[%clk 0:00:47.6]} 25. Rxf8+
{[%clk 0:00:20.4]} 25... Kxf8 {[%clk 0:00:47.4]} 26. Bxc5+ {[%clk 0:00:21.3]}
26... Kf7 {[%clk 0:00:47.2]} 27. h5 {[%clk 0:00:18.3]} 27... gxh5 {[%clk
0:00:45.1]} 28. c3 {[%clk 0:00:15.5]} 28... Ke6 {[%clk 0:00:43.8]} 29. b3 {[%clk
0:00:13.4]} 29... Kd5 {[%clk 0:00:42.5]} 30. Bf8 {[%clk 0:00:13.2]} 30... Ng5
{[%clk 0:00:41.8]} 31. Kg2 {[%clk 0:00:12.6]} 31... Ne6 {[%clk 0:00:41]} 32. Bh6
{[%clk 0:00:12.3]} 32... Ke4 {[%clk 0:00:40.9]} 33. Kh3 {[%clk 0:00:10]} 33...
Kf3 {[%clk 0:00:39.8]} 34. Kh4 {[%clk 0:00:10.1]} 34... Kxf2 {[%clk 0:00:37.6]}
35. Kxh5 {[%clk 0:00:10.6]} 35... Kg2 {[%clk 0:00:37.8]} 36. h4 {[%clk
0:00:10.3]} 36... Kg3 {[%clk 0:00:37.2]} 37. Be3 {[%clk 0:00:07.9]} 37... e4
{[%clk 0:00:37.1]} 38. Kh6 {[%clk 0:00:07.1]} 38... Kxh4 {[%clk 0:00:36.8]} 39.
Kxh7 {[%clk 0:00:07.7]} 39... Kg4 {[%clk 0:00:37.7]} 40. Kg6 {[%clk 0:00:08]}
40... Kf3 {[%clk 0:00:38.6]} 41. Bg1 {[%clk 0:00:05.9]} 41... e3 {[%clk
0:00:38.6]} 42. Bxe3 {[%clk 0:00:03.4]} 42... Kxe3 {[%clk 0:00:38.1]} 43. Kf6
{[%clk 0:00:03.7]} 43... Nc5 {[%clk 0:00:38.1]} 44. Ke7 {[%clk 0:00:02.3]} 44...
Kd3 {[%clk 0:00:38.1]} 45. Kd6 {[%clk 0:00:02.5]} 45... Ne4+ {[%clk 0:00:37.1]}
0-1

[Event "*** Titled Tuesday Blitz"]
[Site "Chess.com"]
[Date "2020.04.21"]
[Round "2"]
[White "kreonx"]
[Black "Sammed_Shete"]
[Result "0-1"]
[WhiteElo "2235"]
[BlackElo "2574"]
[TimeControl "180+1"]
[EndTime "10:17:56 PDT"]
[Termination "Sammed_Shete won on time"]

1. e4 {[%clk 0:03:00.9]} 1... c5 {[%clk 0:02:59.3]} 2. Nc3 {[%clk 0:02:59.9]}
2... Nc6 {[%clk 0:02:58.5]} 3. g3 {[%clk 0:03:00.5]} 3... g6 {[%clk 0:02:57.8]}
4. Bg2 {[%clk 0:03:01]} 4... Bg7 {[%clk 0:02:58.5]} 5. d3 {[%clk 0:03:01.6]}
5... e6 {[%clk 0:02:59]} 6. Be3 {[%clk 0:03:02]} 6... h5 {[%clk 0:02:56.9]} 7.
Bxc5 {[%clk 0:02:57.3]} 7... Nge7 {[%clk 0:02:52]} 8. Be3 {[%clk 0:02:56.2]}
8... h4 {[%clk 0:02:51.9]} 9. g4 {[%clk 0:02:51.1]} 9... d5 {[%clk 0:02:48.8]}
10. exd5 {[%clk 0:02:36.9]} 10... exd5 {[%clk 0:02:49.7]} 11. d4 {[%clk
0:02:37.2]} 11... Qb6 {[%clk 0:02:40.5]} 12. h3 {[%clk 0:02:13.8]} 12... Qxb2
{[%clk 0:02:36.4]} 13. Nge2 {[%clk 0:02:03.6]} 13... Qb6 {[%clk 0:02:18.2]} 14.
O-O {[%clk 0:01:55.6]} 14... Be6 {[%clk 0:02:18.4]} 15. Rb1 {[%clk 0:01:54.1]}
15... Qc7 {[%clk 0:02:18.7]} 16. Nf4 {[%clk 0:01:34.6]} 16... Rd8 {[%clk
0:02:08.8]} 17. Nxe6 {[%clk 0:01:31.8]} 17... fxe6 {[%clk 0:02:09.7]} 18. Ne2
{[%clk 0:01:30.6]} 18... O-O {[%clk 0:02:07.1]} 19. Bg5 {[%clk 0:01:18.7]} 19...
Bf6 {[%clk 0:02:03.4]} 20. Qd2 {[%clk 0:01:13.9]} 20... Nc8 {[%clk 0:01:53.5]}
21. Bxf6 {[%clk 0:00:48.9]} 21... Rxf6 {[%clk 0:01:54.4]} 22. Qg5 {[%clk
0:00:42.8]} 22... Rdf8 {[%clk 0:01:52.4]} 23. Qxh4 {[%clk 0:00:42.3]} 23... Nd6
{[%clk 0:01:51.7]} 24. Qg3 {[%clk 0:00:28.1]} 24... Qd7 {[%clk 0:01:46.8]} 25.
f4 {[%clk 0:00:23.8]} 25... Nc4 {[%clk 0:01:46.4]} 26. Qd3 {[%clk 0:00:20]}
26... Qg7 {[%clk 0:01:40.7]} 27. g5 {[%clk 0:00:17.1]} 27... Rf5 {[%clk
0:01:38.8]} 28. h4 {[%clk 0:00:17.1]} 28... Qh7 {[%clk 0:01:33.2]} 29. Bh3
{[%clk 0:00:16]} 29... Qxh4 {[%clk 0:01:31.5]} 30. Bxf5 {[%clk 0:00:16.1]} 30...
Rxf5 {[%clk 0:01:26.5]} 31. Rxb7 {[%clk 0:00:15.8]} 31... Qg4+ {[%clk
0:01:23.3]} 32. Kh2 {[%clk 0:00:13.5]} 32... Nd6 {[%clk 0:01:18.2]} 33. Ng3
{[%clk 0:00:11.9]} 33... Nxb7 {[%clk 0:01:17]} 34. Qb5 {[%clk 0:00:11.7]} 34...
Nbd8 {[%clk 0:01:07.5]} 35. Nxf5 {[%clk 0:00:11.8]} 35... gxf5 {[%clk
0:00:57.5]} 36. Qd3 {[%clk 0:00:10.9]} 36... Qh4+ {[%clk 0:00:54.1]} 37. Qh3
{[%clk 0:00:09.6]} 37... Qxh3+ {[%clk 0:00:53.9]} 38. Kxh3 {[%clk 0:00:09.6]}
38... Nxd4 {[%clk 0:00:54.7]} 39. Rb1 {[%clk 0:00:08.5]} 39... N8c6 {[%clk
0:00:48.6]} 40. Kh4 {[%clk 0:00:07.9]} 40... Nxc2 {[%clk 0:00:48.2]} 41. Kh5
{[%clk 0:00:06.5]} 41... Ne7 {[%clk 0:00:45.5]} 42. Kh6 {[%clk 0:00:05.3]} 42...
Nd4 {[%clk 0:00:42.4]} 43. Rb8+ {[%clk 0:00:03.7]} 43... Kf7 {[%clk 0:00:42.4]}
44. g6+ {[%clk 0:00:03.9]} 44... Nxg6 {[%clk 0:00:42.1]} 45. Rb7+ {[%clk
0:00:03.1]} 45... Ne7 {[%clk 0:00:42.1]} 46. Rxa7 {[%clk 0:00:02.7]} 46... Ne2
{[%clk 0:00:41.5]} 47. Kg5 {[%clk 0:00:02.6]} 47... Ng3 {[%clk 0:00:39.8]} 48.
a4 {[%clk 0:00:01.4]} 48... Ne4+ {[%clk 0:00:39.8]} 0-1

[Event "*** Titled Tuesday Blitz"]
[Site "Chess.com"]
[Date "2020.04.21"]
[Round "2"]
[White "praveenb2002"]
[Black "Noam_Vitenberg"]
[Result "1-0"]
[WhiteElo "2718"]
[BlackElo "2500"]
[TimeControl "180+1"]
[EndTime "10:17:59 PDT"]
[Termination "praveenb2002 won by resignation"]

1. d4 {[%clk 0:03:00.9]} 1... d5 {[%clk 0:02:53]} 2. c4 {[%clk 0:03:00.6]} 2...
e6 {[%clk 0:02:52.7]} 3. Nf3 {[%clk 0:02:58.9]} 3... Nf6 {[%clk 0:02:50.8]} 4.
g3 {[%clk 0:02:56.9]} 4... dxc4 {[%clk 0:02:47.4]} 5. Bg2 {[%clk 0:02:53.6]}
5... a6 {[%clk 0:02:45.3]} 6. O-O {[%clk 0:02:46.2]} 6... Nc6 {[%clk 0:02:45.1]}
7. e3 {[%clk 0:02:45.5]} 7... Rb8 {[%clk 0:02:43.3]} 8. Nfd2 {[%clk 0:02:42]}
8... e5 {[%clk 0:02:41.4]} 9. Bxc6+ {[%clk 0:02:39.9]} 9... bxc6 {[%clk
0:02:42.3]} 10. dxe5 {[%clk 0:02:40.3]} 10... Ng4 {[%clk 0:02:37.6]} 11. Nxc4
{[%clk 0:02:39]} 11... Be6 {[%clk 0:02:37]} 12. Qxd8+ {[%clk 0:01:42.7]} 12...
Rxd8 {[%clk 0:02:34.9]} 13. Nbd2 {[%clk 0:01:33.7]} 13... Bb4 {[%clk 0:02:30]}
14. a3 {[%clk 0:01:01.4]} 14... Bxd2 {[%clk 0:02:24.5]} 15. Nxd2 {[%clk
0:01:02.3]} 15... Nxe5 {[%clk 0:02:24.3]} 16. f4 {[%clk 0:01:02.6]} 16... Nd3
{[%clk 0:02:23.4]} 17. Nf3 {[%clk 0:00:56.7]} 17... O-O {[%clk 0:01:50.2]} 18.
b4 {[%clk 0:00:54.7]} 18... Bh3 {[%clk 0:01:42.4]} 19. Rd1 {[%clk 0:00:54.2]}
19... Bg4 {[%clk 0:01:41.7]} 20. Rf1 {[%clk 0:00:47.3]} 20... Rfe8 {[%clk
0:01:18.7]} 21. Nd4 {[%clk 0:00:43.1]} 21... c5 {[%clk 0:01:11.7]} 22. bxc5
{[%clk 0:00:42.4]} 22... Nxc1 {[%clk 0:01:06.9]} 23. Raxc1 {[%clk 0:00:40]}
23... Rxe3 {[%clk 0:01:07.2]} 24. Rfe1 {[%clk 0:00:35.7]} 24... Rxe1+ {[%clk
0:00:45.2]} 25. Rxe1 {[%clk 0:00:35.3]} 25... Kf8 {[%clk 0:00:45.3]} 26. Nc6
{[%clk 0:00:28.7]} 26... Rd2 {[%clk 0:00:37.5]} 27. Rb1 {[%clk 0:00:25.8]} 27...
f6 {[%clk 0:00:32.1]} 28. Rb8+ {[%clk 0:00:21.7]} 28... Kf7 {[%clk 0:00:31.7]}
29. Rb7 {[%clk 0:00:22.2]} 29... Bf3 {[%clk 0:00:30.8]} 30. Rxc7+ {[%clk
0:00:20.6]} 30... Kg6 {[%clk 0:00:30.7]} 31. Ne7+ {[%clk 0:00:20]} 31... Kh6
{[%clk 0:00:30.2]} 32. Nf5+ {[%clk 0:00:19.5]} 32... Kh5 {[%clk 0:00:28.9]} 33.
Rxg7 {[%clk 0:00:18.4]} 33... Rg2+ {[%clk 0:00:21.5]} 34. Kf1 {[%clk 0:00:18.4]}
34... Rxh2 {[%clk 0:00:21.3]} 35. Rxh7+ {[%clk 0:00:18.6]} 35... Kg6 {[%clk
0:00:20.2]} 36. Rxh2 {[%clk 0:00:17.8]} 36... Kxf5 {[%clk 0:00:21.1]} 37. Kf2
{[%clk 0:00:18.3]} 37... Bd5 {[%clk 0:00:20.3]} 38. Rh7 {[%clk 0:00:15.2]} 38...
Ke6 {[%clk 0:00:18.7]} 39. Ra7 {[%clk 0:00:14.5]} 39... Bc4 {[%clk 0:00:18.2]}
40. c6 {[%clk 0:00:15]} 40... Bb5 {[%clk 0:00:15.6]} 41. c7 {[%clk 0:00:14.5]}
41... Kd7 {[%clk 0:00:16.1]} 42. Ke3 {[%clk 0:00:14.7]} 42... Kc8 {[%clk
0:00:15]} 43. Kd4 {[%clk 0:00:15.1]} 43... Kd7 {[%clk 0:00:13.8]} 44. Kc5 {[%clk
0:00:15.4]} 44... Kc8 {[%clk 0:00:14]} 45. Kd6 {[%clk 0:00:15.1]} 45... f5
{[%clk 0:00:09.9]} 46. Ra8+ {[%clk 0:00:13.8]} 46... Kb7 {[%clk 0:00:10.8]} 47.
c8=Q+ {[%clk 0:00:14.7]} 1-0

[Event "*** Titled Tuesday Blitz"]
[Site "Chess.com"]
[Date "2020.04.21"]
[Round "2"]
[White "Shahinyan_ChessMood"]
[Black "tomsishere"]
[Result "1-0"]
[WhiteElo "2660"]
[BlackElo "2387"]
[TimeControl "180+1"]
[EndTime "10:17:59 PDT"]
[Termination "Shahinyan_ChessMood won by resignation"]

1. e4 {[%clk 0:03:00.9]} 1... c5 {[%clk 0:02:58.7]} 2. Nc3 {[%clk 0:03:00.7]}
2... a6 {[%clk 0:02:58.5]} 3. g3 {[%clk 0:03:01.6]} 3... b5 {[%clk 0:02:58.4]}
4. Bg2 {[%clk 0:03:02]} 4... Bb7 {[%clk 0:02:59]} 5. d3 {[%clk 0:03:02.5]} 5...
e6 {[%clk 0:02:59.5]} 6. Nh3 {[%clk 0:03:02.6]} 6... d5 {[%clk 0:02:56.9]} 7.
exd5 {[%clk 0:02:58.5]} 7... b4 {[%clk 0:02:55.9]} 8. O-O {[%clk 0:02:41.2]}
8... bxc3 {[%clk 0:02:04.9]} 9. dxe6 {[%clk 0:02:42.1]} 9... Bxg2 {[%clk
0:02:05.3]} 10. exf7+ {[%clk 0:02:41.5]} 10... Kxf7 {[%clk 0:02:06.2]} 11. Ng5+
{[%clk 0:02:20]} 11... Ke8 {[%clk 0:02:01.9]} 12. Re1+ {[%clk 0:02:14.9]} 12...
Be7 {[%clk 0:01:51]} 13. Kxg2 {[%clk 0:02:13.7]} 13... Qd5+ {[%clk 0:01:38.2]}
14. Nf3 {[%clk 0:01:56.6]} 14... Nc6 {[%clk 0:01:27.1]} 15. bxc3 {[%clk
0:01:51]} 15... Nf6 {[%clk 0:01:18.2]} 16. c4 {[%clk 0:01:46.1]} 16... Qd7
{[%clk 0:01:08]} 17. Bb2 {[%clk 0:01:37.1]} 17... Kf8 {[%clk 0:00:48.5]} 18. Ng5
{[%clk 0:01:32.6]} 18... Rb8 {[%clk 0:00:32.8]} 19. Bc3 {[%clk 0:01:26.1]} 19...
Nd4 {[%clk 0:00:27.3]} 20. Bxd4 {[%clk 0:01:24.9]} 20... cxd4 {[%clk 0:00:26.1]}
21. Qf3 {[%clk 0:01:23.6]} 21... Qb7 {[%clk 0:00:20.7]} 22. Ne6+ {[%clk
0:01:23.7]} 22... Kf7 {[%clk 0:00:18.9]} 23. Nxd4 {[%clk 0:01:23.9]} 23... Qxf3+
{[%clk 0:00:18.1]} 24. Nxf3 {[%clk 0:01:24.8]} 24... Rhd8 {[%clk 0:00:17.5]} 25.
Ne5+ {[%clk 0:01:24.2]} 25... Kf8 {[%clk 0:00:15.8]} 26. Nc6 {[%clk 0:01:25.1]}
26... Rb7 {[%clk 0:00:14.3]} 27. Rxe7 {[%clk 0:01:21]} 27... Rxe7 {[%clk
0:00:13.1]} 28. Nxd8 {[%clk 0:01:21.6]} 28... Re2 {[%clk 0:00:13.7]} 29. h3
{[%clk 0:01:09.3]} 29... Rxc2 {[%clk 0:00:12.8]} 30. Ne6+ {[%clk 0:01:09.4]}
30... Kf7 {[%clk 0:00:12.3]} 31. Nc5 {[%clk 0:01:10.3]} 31... a5 {[%clk
0:00:10.9]} 32. a4 {[%clk 0:01:10.5]} 32... h5 {[%clk 0:00:08.2]} 33. Rb1 {[%clk
0:01:08.1]} 33... h4 {[%clk 0:00:08.4]} 34. g4 {[%clk 0:01:08.3]} 34... Ke7
{[%clk 0:00:04.6]} 35. Rb5 {[%clk 0:01:06.3]} 35... Kd6 {[%clk 0:00:04.4]} 36.
Rxa5 {[%clk 0:01:06.9]} 36... Kc6 {[%clk 0:00:04.4]} 37. Rb5 {[%clk 0:01:06]}
37... Ne8 {[%clk 0:00:04]} 38. Ne4 {[%clk 0:01:03.5]} 38... Nc7 {[%clk
0:00:04.4]} 39. Rc5+ {[%clk 0:01:02.8]} 39... Kd7 {[%clk 0:00:04.9]} 40. a5
{[%clk 0:01:03.1]} 40... Ne6 {[%clk 0:00:05.2]} 41. Rd5+ {[%clk 0:01:03.4]}
41... Kc7 {[%clk 0:00:04.6]} 42. Kf3 {[%clk 0:01:01]} 42... Ra2 {[%clk
0:00:03.5]} 43. Nc5 {[%clk 0:00:58.7]} 43... Nd8 {[%clk 0:00:03.1]} 44. a6
{[%clk 0:00:57.8]} 44... Nc6 {[%clk 0:00:03]} 45. Rg5 {[%clk 0:00:56.2]} 45...
Kb6 {[%clk 0:00:03.1]} 46. Ne4 {[%clk 0:00:51.8]} 46... Nd4+ {[%clk 0:00:02.9]}
47. Ke3 {[%clk 0:00:50.8]} 47... Nc2+ {[%clk 0:00:03.1]} 48. Kf4 {[%clk
0:00:51.3]} 48... Nd4 {[%clk 0:00:03.2]} 49. Rg6+ {[%clk 0:00:50.6]} 49... Ka5
{[%clk 0:00:02.7]} 50. a7 {[%clk 0:00:49.2]} 50... Kb4 {[%clk 0:00:02.9]} 51.
Rb6+ {[%clk 0:00:47.6]} 51... Ka5 {[%clk 0:00:01.5]} 52. a8=Q+ {[%clk
0:00:46.8]} 52... Kxb6 {[%clk 0:00:02.4]} 53. Qxa2 {[%clk 0:00:47]} 53... Ne6+
{[%clk 0:00:03.3]} 54. Ke3 {[%clk 0:00:46.2]} 54... Nc7 {[%clk 0:00:04.2]} 55.
c5+ {[%clk 0:00:46.9]} 55... Kb7 {[%clk 0:00:04.5]} 56. Qf7 {[%clk 0:00:47.2]}
1-0

[Event "*** Titled Tuesday Blitz"]
[Site "Chess.com"]
[Date "2020.04.21"]
[Round "2"]
[White "Alliswell998"]
[Black "imdarealist"]
[Result "0-1"]
[WhiteElo "2555"]
[BlackElo "2311"]
[TimeControl "180+1"]
[EndTime "10:17:59 PDT"]
[Termination "imdarealist won by checkmate"]

1. d4 {[%clk 0:03:00.9]} 1... d5 {[%clk 0:02:59.6]} 2. Bg5 {[%clk 0:03:00.2]}
2... Nf6 {[%clk 0:02:58.8]} 3. Bxf6 {[%clk 0:02:59.4]} 3... exf6 {[%clk
0:02:59.7]} 4. e3 {[%clk 0:02:59.9]} 4... c6 {[%clk 0:02:58.8]} 5. c4 {[%clk
0:03:00.3]} 5... Bd6 {[%clk 0:02:55.5]} 6. cxd5 {[%clk 0:02:59.7]} 6... cxd5
{[%clk 0:02:55.4]} 7. Nc3 {[%clk 0:03:00]} 7... Bb4 {[%clk 0:02:46.8]} 8. Bd3
{[%clk 0:02:51.6]} 8... f5 {[%clk 0:02:34.7]} 9. Ne2 {[%clk 0:02:50.9]} 9... Nc6
{[%clk 0:02:27.5]} 10. O-O {[%clk 0:02:51]} 10... O-O {[%clk 0:02:27.2]} 11. Rc1
{[%clk 0:02:49.2]} 11... Be6 {[%clk 0:02:25.2]} 12. Nf4 {[%clk 0:02:44.1]} 12...
a6 {[%clk 0:02:15.3]} 13. a3 {[%clk 0:02:41.3]} 13... Be7 {[%clk 0:02:07.1]} 14.
b4 {[%clk 0:02:38.1]} 14... Rc8 {[%clk 0:02:01.1]} 15. Qb3 {[%clk 0:02:37.5]}
15... Bg5 {[%clk 0:01:44.7]} 16. Ncxd5 {[%clk 0:02:30.5]} 16... Bxf4 {[%clk
0:01:41.9]} 17. Bc4 {[%clk 0:02:08.5]} 17... Bb8 {[%clk 0:01:31.1]} 18. g3
{[%clk 0:01:51.7]} 18... b5 {[%clk 0:01:09.2]} 19. Nf4 {[%clk 0:01:22.4]} 19...
Bxc4 {[%clk 0:01:06]} 20. Rxc4 {[%clk 0:01:16.4]} 20... bxc4 {[%clk 0:01:06.9]}
21. Qc3 {[%clk 0:01:17.3]} 21... Ne7 {[%clk 0:01:04.7]} 22. Qc2 {[%clk 0:01:15]}
22... Bxf4 {[%clk 0:01:00.1]} 23. gxf4 {[%clk 0:01:15.9]} 23... Qd5 {[%clk
0:01:00]} 24. f3 {[%clk 0:01:15.8]} 24... Rfd8 {[%clk 0:00:58]} 25. Kf2 {[%clk
0:01:16.1]} 25... a5 {[%clk 0:00:52]} 26. Rg1 {[%clk 0:01:17]} 26... g6 {[%clk
0:00:51.2]} 27. h4 {[%clk 0:01:16.7]} 27... axb4 {[%clk 0:00:51.5]} 28. axb4
{[%clk 0:01:17.6]} 28... c3 {[%clk 0:00:46.9]} 29. h5 {[%clk 0:01:18.5]} 29...
Qc4 {[%clk 0:00:40.9]} 30. Kg3 {[%clk 0:01:17]} 30... Ra8 {[%clk 0:00:36.8]} 31.
hxg6 {[%clk 0:01:11.7]} 31... fxg6 {[%clk 0:00:34.3]} 32. Qh2 {[%clk 0:01:12.5]}
32... Nd5 {[%clk 0:00:26.7]} 33. Qh6 {[%clk 0:01:03.8]} 33... Rd7 {[%clk
0:00:25.6]} 34. b5 {[%clk 0:01:01]} 34... Qxb5 {[%clk 0:00:23.8]} 35. Kh4 {[%clk
0:01:01.4]} 35... Rg7 {[%clk 0:00:23.5]} 36. Qg5 {[%clk 0:00:57.5]} 36... Qb7
{[%clk 0:00:20.6]} 37. Kh3 {[%clk 0:00:57.4]} 37... Qe7 {[%clk 0:00:19.8]} 38.
Qg3 {[%clk 0:00:56.6]} 38... Qxe3 {[%clk 0:00:19.5]} 39. Re1 {[%clk 0:00:55.2]}
39... Qxf4 {[%clk 0:00:18.2]} 40. Qf2 {[%clk 0:00:48.4]} 40... Qd2 {[%clk
0:00:15.3]} 41. Re2 {[%clk 0:00:47.4]} 41... Qxe2 {[%clk 0:00:15.5]} 42. Qg3
{[%clk 0:00:45]} 42... c2 {[%clk 0:00:08]} 43. Qd6 {[%clk 0:00:45.4]} 43... Qe7
{[%clk 0:00:01.2]} 44. Qxd5+ {[%clk 0:00:44.8]} 44... Rf7 {[%clk 0:00:02.1]} 45.
Qxa8+ {[%clk 0:00:44.7]} 45... Kg7 {[%clk 0:00:02.6]} 46. Qc8 {[%clk 0:00:43.7]}
46... Qc7 {[%clk 0:00:03]} 47. Qe6 {[%clk 0:00:41.9]} 47... c1=Q {[%clk
0:00:03.1]} 48. f4 {[%clk 0:00:36.3]} 48... Qh1+ {[%clk 0:00:03.3]} 49. Kg3
{[%clk 0:00:36.6]} 49... Qc3+ {[%clk 0:00:03.8]} 50. Qe3 {[%clk 0:00:35.5]}
50... Qf3+ {[%clk 0:00:04.7]} 51. Qxf3 {[%clk 0:00:35.6]} 51... Qxf3+ {[%clk
0:00:05.1]} 52. Kh4 {[%clk 0:00:36.1]} 52... Qg4# {[%clk 0:00:04.1]} 0-1

[Event "*** Titled Tuesday Blitz"]
[Site "Chess.com"]
[Date "2020.04.21"]
[Round "2"]
[White "pomeraniandog"]
[Black "steepedgames"]
[Result "1-0"]
[WhiteElo "1771"]
[BlackElo "2347"]
[TimeControl "180+1"]
[EndTime "10:17:59 PDT"]
[Termination "pomeraniandog won by checkmate"]

1. e4 {[%clk 0:03:00.9]} 1... e6 {[%clk 0:02:59.2]} 2. d4 {[%clk 0:03:00.6]}
2... d5 {[%clk 0:03:00.1]} 3. Bd3 {[%clk 0:03:00.3]} 3... Nf6 {[%clk 0:02:59.3]}
4. e5 {[%clk 0:03:00.4]} 4... Nfd7 {[%clk 0:03:00]} 5. f4 {[%clk 0:03:01]} 5...
c5 {[%clk 0:03:00.6]} 6. c3 {[%clk 0:03:01.2]} 6... Nc6 {[%clk 0:02:58]} 7. Nf3
{[%clk 0:03:01.5]} 7... Be7 {[%clk 0:02:56.4]} 8. a3 {[%clk 0:03:00.8]} 8... a5
{[%clk 0:02:55.9]} 9. O-O {[%clk 0:02:59.2]} 9... c4 {[%clk 0:02:54.9]} 10. Bc2
{[%clk 0:02:58.9]} 10... b5 {[%clk 0:02:55.7]} 11. Be3 {[%clk 0:02:47.9]} 11...
g6 {[%clk 0:02:55]} 12. Nbd2 {[%clk 0:02:46.2]} 12... Ba6 {[%clk 0:02:52.8]} 13.
Qe1 {[%clk 0:02:37.8]} 13... b4 {[%clk 0:02:49.4]} 14. Ba4 {[%clk 0:02:07.7]}
14... Qc7 {[%clk 0:02:43.8]} 15. Bf2 {[%clk 0:02:01.8]} 15... Nb6 {[%clk
0:02:42.2]} 16. Bxc6+ {[%clk 0:01:52.3]} 16... Qxc6 {[%clk 0:02:43.1]} 17. Bh4
{[%clk 0:01:40.8]} 17... bxa3 {[%clk 0:02:25.3]} 18. bxa3 {[%clk 0:01:19.9]}
18... Qc7 {[%clk 0:02:20.9]} 19. h3 {[%clk 0:01:04.9]} 19... Na4 {[%clk
0:02:15.9]} 20. Qe3 {[%clk 0:00:35.3]} 20... Nb2 {[%clk 0:02:06.2]} 21. Bg5
{[%clk 0:00:20.5]} 21... Nd3 {[%clk 0:02:02.6]} 22. Nh2 {[%clk 0:00:19.8]} 22...
h5 {[%clk 0:01:56.3]} 23. Nhf3 {[%clk 0:00:17.9]} 23... Rb8 {[%clk 0:01:47.1]}
24. a4 {[%clk 0:00:17.1]} 24... Rb2 {[%clk 0:01:33.4]} 25. Rfb1 {[%clk
0:00:15.8]} 25... Bc8 {[%clk 0:01:18.1]} 26. Rxb2 {[%clk 0:00:12.9]} 26... Nxb2
{[%clk 0:01:17.9]} 27. Ne1 {[%clk 0:00:12.2]} 27... Bd7 {[%clk 0:01:15.9]} 28.
Bxe7 {[%clk 0:00:10.8]} 28... Kxe7 {[%clk 0:01:16.8]} 29. Ndf3 {[%clk
0:00:10.3]} 29... Nxa4 {[%clk 0:01:14.1]} 30. Qc1 {[%clk 0:00:09.6]} 30... Qb6
{[%clk 0:00:53.4]} 31. Qa3+ {[%clk 0:00:09.9]} 31... Kd8 {[%clk 0:00:51.9]} 32.
Qc1 {[%clk 0:00:08]} 32... Qb3 {[%clk 0:00:47]} 33. Rb1 {[%clk 0:00:08.1]} 33...
Qxc3 {[%clk 0:00:46.6]} 34. Rb8+ {[%clk 0:00:06.5]} 34... Bc8 {[%clk 0:00:47]}
35. Qb1 {[%clk 0:00:04.6]} 35... Qe3+ {[%clk 0:00:32.8]} 36. Kh2 {[%clk
0:00:04.6]} 36... Qxf4+ {[%clk 0:00:19.5]} 37. g3 {[%clk 0:00:04.7]} 37... Qe3
{[%clk 0:00:19.4]} 38. Qb7 {[%clk 0:00:04.6]} 38... Qe2+ {[%clk 0:00:18.7]} 39.
Kh1 {[%clk 0:00:04.2]} 39... Qf1+ {[%clk 0:00:08.5]} 40. Ng1 {[%clk 0:00:04.6]}
40... Nb6 {[%clk 0:00:07.4]} 41. Qxb6+ {[%clk 0:00:04.6]} 41... Ke7 {[%clk
0:00:07.9]} 42. Qd6+ {[%clk 0:00:04.6]} 42... Ke8 {[%clk 0:00:03.5]} 43. Rxc8#
{[%clk 0:00:05.5]} 1-0